bitfinex/quotes_BTCUSD_20241211
["timestamp","ask_amount","ask_price","bid_price","bid_amount"]
[1733885553662,0.00055141,97221.0,97220.0,0.304118]
[1733885553865,0.00155141,97221.0,97220.0,0.304118]
[1733885554244,0.00055141,97221.0,97220.0,0.304118]
[1733885554504,0.00055141,97221.0,97220.0,0.305118]
[1733885554722,8.58e-05,97250.0,97235.0,0.205685]
[1733885554970,0.205657,97249.0,97236.0,0.0754]
[1733885555176,8.58e-05,97250.0,97237.0,0.205683]
[1733885555394,8.58e-05,97250.0,97237.0,0.411366]
[1733885555557,8.58e-05,97250.0,97236.0,0.0754]
[1733885555558,0.2057408,97250.0,97236.0,0.0754]
[1733885555889,0.2057408,97250.0,97237.0,0.205683]
[1733885556006,0.2057408,97250.0,97236.0,0.0754]
[1733885556007,8.58e-05,97250.0,97236.0,0.0754]
[1733885556212,8.58e-05,97250.0,97238.0,0.023]
[1733885556844,8.58e-05,97250.0,97237.0,0.023]
[1733885557132,8.58e-05,97250.0,97239.0,0.023]
[1733885557522,0.005,97249.0,97239.0,0.023]
[1733885557927,0.0020858,97250.0,97239.0,0.023]
[1733885558136,0.0080858,97250.0,97239.0,0.023]
[1733885558335,0.0060858,97250.0,97239.0,0.023]
[1733885558540,8.58e-05,97250.0,97239.0,0.023]
[1733885558675,0.005,97249.0,97239.0,0.023]
[1733885559080,8.58e-05,97250.0,97239.0,0.023]
[1733885559281,8.58e-05,97250.0,97241.0,0.023]
[1733885559933,8.58e-05,97250.0,97239.0,0.023]
[1733885560135,0.003,97249.0,97241.0,0.023]
[1733885560334,0.003,97249.0,97242.0,0.023]
[1733885560535,0.003,97249.0,97243.0,0.205669]
[1733885560684,0.003,97249.0,97245.0,0.205666]
[1733885560886,0.0070858,97250.0,97245.0,0.205666]
[1733885561321,0.0070858,97250.0,97243.0,0.205669]
[1733885561322,0.0030858,97250.0,97244.0,0.023]
[1733885561713,0.006,97249.0,97244.0,0.023]
[1733885561950,0.0030858,97250.0,97244.0,0.023]
[1733885562159,0.0030858,97250.0,97242.0,0.023]
[1733885562363,0.0030858,97250.0,97246.0,0.023]
[1733885562364,0.205658,97249.0,97246.0,0.023]
[1733885562823,0.411316,97249.0,97246.0,0.023]
[1733885563731,0.411316,97249.0,97242.0,0.023]
[1733885563935,0.205658,97249.0,97242.0,0.023]
[1733885564079,8.58e-05,97250.0,97245.0,0.023]
[1733885564288,8.58e-05,97250.0,97245.0,0.025]
[1733885564863,8.58e-05,97250.0,97241.0,0.0468]
[1733885564864,8.58e-05,97250.0,97246.0,0.001]
[1733885565073,8.58e-05,97250.0,97242.0,0.023]
[1733885565303,8.58e-05,97250.0,97242.0,0.024]
[1733885565477,0.205657,97249.0,97242.0,0.024]
[1733885565919,0.205669,97244.0,97242.0,0.024]
[1733885566301,0.205669,97244.0,97242.0,0.001]
[1733885567074,0.205669,97244.0,97243.0,0.023]
[1733885567563,0.205678,97240.0,97237.0,0.023]
[1733885568158,0.411356,97240.0,97237.0,0.023]
[1733885568668,0.411356,97240.0,97226.0,0.0812]
[1733885568669,0.205704,97227.0,97226.0,0.0812]
[1733885568868,0.205704,97227.0,97217.0,0.0812]
[1733885568869,0.205716,97221.0,97217.0,0.0812]
[1733885571026,0.205716,97221.0,97218.0,0.023]
[1733885571577,0.205716,97221.0,97220.0,0.02663721]
[1733885571797,0.205716,97221.0,97220.0,0.03063721]
[1733885578336,0.31104124,97221.0,97220.0,0.00763721]
[1733885579792,0.31104124,97221.0,97220.0,0.03063721]
[1733885581877,0.12178279,97236.0,97220.0,0.03063721]
[1733885581878,0.205693,97232.0,97222.0,0.0778]
[1733885582082,0.12186859,97250.0,97223.0,0.023]
[1733885582275,0.205683,97237.0,97225.0,0.023]
[1733885582495,0.10532524,97249.0,97224.0,0.0454]
[1733885582496,0.10532524,97249.0,97227.0,0.023]
[1733885582704,0.10532524,97249.0,97228.0,0.0778]
[1733885582820,0.205674,97242.0,97229.0,0.023]
[1733885583182,8.58e-05,97250.0,97229.0,0.228699]
[1733885583383,0.2057418,97250.0,97239.0,0.023]
[1733885584050,8.58e-05,97250.0,97239.0,0.023]
[1733885584211,0.2057418,97250.0,97239.0,0.023]
[1733885584712,0.2057418,97250.0,97246.0,0.023]
[1733885584713,8.58e-05,97250.0,97246.0,0.023]
[1733885584854,0.32136666,97307.0,97262.0,0.023]
[1733885585056,0.205609,97272.0,97262.0,0.023]
[1733885585253,0.12178279,97280.0,97262.0,0.023]
[1733885585455,0.12178279,97290.0,97263.0,0.205628]
[1733885585667,0.205575,97288.0,97269.0,0.205613]
[1733885585894,0.10532524,97287.0,97270.0,0.023]
[1733885586254,0.10532524,97287.0,97270.0,0.00016448]
[1733885586651,0.205575,97288.0,97270.0,0.00016448]
[1733885586957,0.205575,97288.0,97271.0,0.205611]
[1733885587185,0.205575,97288.0,97274.0,0.023]
[1733885587423,0.205587,97283.0,97274.0,0.023]
[1733885587580,0.01000925,97290.0,97276.0,0.023]
[1733885587756,0.12178279,97300.0,97278.0,0.023]
[1733885587757,0.001,97287.0,97278.0,0.023]
[1733885588374,0.12178279,97290.0,97278.0,0.023]
[1733885588577,0.001,97283.0,97278.0,0.023]
[1733885588781,0.001,97283.0,97276.0,0.023]
[1733885588953,0.205568,97292.0,97276.0,0.023]
[1733885589321,8.59e-05,97320.0,97276.0,0.023]
[1733885589541,0.003,97287.0,97276.0,0.023]
[1733885589726,0.003,97287.0,97271.0,0.15]
[1733885589727,0.003,97287.0,97283.0,0.023]
[1733885590327,0.003,97287.0,97279.0,0.205594]
[1733885590476,0.004,97287.0,97280.0,0.023]
[1733885590677,0.001,97287.0,97280.0,0.023]
[1733885591003,0.205563,97294.0,97282.0,0.023]
[1733885591004,0.001,97283.0,97282.0,0.023]
[1733885591407,0.205563,97294.0,97283.0,0.002]
[1733885591610,0.205563,97294.0,97284.0,0.023]
[1733885591979,0.205563,97294.0,97119.0,1.6511972]
[1733885591980,0.411126,97294.0,97279.0,0.205593]
[1733885592206,0.205517,97316.0,97302.0,0.205545]
[1733885592421,8.59e-05,97320.0,97305.0,0.023]
[1733885592639,8.59e-05,97320.0,97308.0,0.205532]
[1733885592852,8.59e-05,97320.0,97309.0,0.023]
[1733885593193,8.59e-05,97320.0,97309.0,0.0684]
[1733885593395,8.59e-05,97320.0,97309.0,0.06856448]
[1733885594373,8.59e-05,97320.0,97317.0,0.205513]
[1733885594577,8.59e-05,97320.0,97309.0,0.07256448]
[1733885594791,8.59e-05,97320.0,97309.0,0.06856448]
[1733885594964,8.59e-05,97320.0,97312.0,0.205524]
[1733885595318,0.001,97310.0,97309.0,0.28509448]
[1733885595521,0.001,97310.0,97309.0,0.07956448]
[1733885595751,8.59e-05,97320.0,97309.0,0.07256448]
[1733885595948,0.205523,97313.0,97309.0,0.07556448]
[1733885596293,0.411046,97313.0,97309.0,0.02716448]
[1733885596529,0.411046,97313.0,97309.0,0.00616448]
[1733885596530,0.205526,97311.0,97309.0,0.00616448]
[1733885596940,0.205526,97311.0,97309.0,0.00816448]
[1733885597163,0.205513,97317.0,97309.0,0.00816448]
[1733885597404,8.59e-05,97320.0,97309.0,0.00816448]
[1733885597405,0.20552,97314.0,97309.0,0.00616448]
[1733885597844,0.001,97311.0,97310.0,0.023]
[1733885598030,0.001,97311.0,97309.0,0.00016448]
[1733885598243,0.20552,97314.0,97309.0,0.00016448]
[1733885598468,0.411041,97314.0,97310.0,0.023]
[1733885598818,0.411041,97314.0,97309.0,0.00116448]
[1733885599234,0.01020278,97317.0,97309.0,0.00116448]
[1733885599435,8.59e-05,97320.0,97309.0,0.00116448]
[1733885599699,0.002,97314.0,97312.0,0.023]
[1733885599900,8.59e-05,97320.0,97314.0,0.023]
[1733885600313,8.59e-05,97320.0,97317.0,0.205513]
[1733885600739,8.59e-05,97320.0,97316.0,0.023]
[1733885601266,8.59e-05,97320.0,97311.0,0.205524]
[1733885601267,8.59e-05,97320.0,97319.0,0.023]
[1733885601797,8.59e-05,97320.0,97319.0,0.311309]
[1733885602222,8.59e-05,97330.0,97329.0,0.228488]
[1733885602624,8.59e-05,97330.0,97329.0,0.023]
[1733885602827,8.59e-05,97330.0,97321.0,0.15]
[1733885603196,8.59e-05,97330.0,97329.0,0.48812524]
[1733885603634,8.59e-05,97340.0,97339.0,0.355467]
[1733885604445,8.59e-05,97340.0,97339.0,0.378467]
[1733885604961,0.000638,97340.0,97339.0,0.378467]
[1733885605361,0.000638,97340.0,97337.0,0.355471]
[1733885605362,0.000638,97340.0,97338.0,0.023]
[1733885605572,0.000638,97340.0,97339.0,0.033]
[1733885606693,0.000638,97340.0,97339.0,0.027]
[1733885606943,0.000638,97340.0,97330.0,0.023]
[1733885607408,0.000638,97340.0,97339.0,0.023]
[1733885607935,0.000638,97340.0,97331.0,0.023]
[1733885608339,0.000638,97340.0,97339.0,0.023]
[1733885608540,0.000638,97340.0,97331.0,0.023]
[1733885608958,0.41157,97340.0,97339.0,0.001]
[1733885609181,0.205478,97334.0,97330.0,0.023]
[1733885609557,0.206104,97340.0,97339.0,0.001]
[1733885609558,0.38860684,97340.0,97339.0,0.001]
[1733885609759,0.31142824,97340.0,97339.0,0.001]
[1733885609968,0.205516,97316.0,97315.0,0.0792]
[1733885610178,0.205516,97316.0,97304.0,0.048]
[1733885610179,0.18250384,97330.0,97305.0,0.0792]
[1733885610352,0.10532524,97329.0,97305.0,0.0792]
[1733885610555,0.18250384,97320.0,97305.0,0.0792]
[1733885610756,0.205532,97309.0,97305.0,0.0792]
[1733885611278,0.411064,97309.0,97305.0,0.0792]
[1733885611904,0.0090859,97340.0,97314.0,0.20552]
[1733885612096,0.0090859,97340.0,97315.0,0.023]
[1733885612097,0.205478,97334.0,97315.0,0.023]
[1733885612296,0.31079424,97338.0,97315.0,0.205516]
[1733885612297,0.20548,97333.0,97315.0,0.205516]
[1733885612497,0.205471,97337.0,97311.0,0.15]
[1733885612679,0.205471,97337.0,97324.0,0.023]
[1733885613362,0.003,97334.0,97324.0,0.023]
[1733885614024,0.205471,97337.0,97324.0,0.023]
[1733885615180,0.205472,97337.0,97320.0,0.023]
[1733885615394,0.205472,97337.0,97315.0,0.15]
[1733885615395,0.18250384,97330.0,97314.0,0.023]
[1733885615535,0.205501,97324.0,97314.0,0.023]
[1733885615740,0.205501,97324.0,97305.0,0.0792]
[1733885615741,0.18250384,97330.0,97305.0,0.0792]
[1733885615953,0.18250384,97320.0,97305.0,0.0792]
[1733885616180,0.10532524,97329.0,97305.0,0.0792]
[1733885616181,0.205533,97308.0,97305.0,0.0792]
[1733885617519,0.205533,97308.0,97305.0,0.00116448]
[1733885617735,0.411066,97308.0,97305.0,0.00116448]
[1733885618454,0.411066,97308.0,97305.0,0.00216448]
[1733885618675,0.205533,97308.0,97306.0,0.023]
[1733885619818,0.411066,97308.0,97305.0,0.00116448]
[1733885620036,0.205533,97308.0,97306.0,0.001]
[1733885620412,0.205533,97308.0,97307.0,0.023]
[1733885620857,0.411066,97308.0,97305.0,0.00016448]
[1733885621079,0.10532524,97307.0,97305.0,0.00016448]
[1733885621282,0.23745131,97306.0,97305.0,0.00016448]
[1733885621430,0.34277655,97306.0,97305.0,0.00016448]
[1733885623511,0.34677655,97306.0,97305.0,4.8e-07]
[1733885623921,0.205547,97301.0,97269.0,0.0792]
[1733885624127,0.34278655,97301.0,97300.0,0.00033624]
[1733885625647,0.34878655,97301.0,97300.0,0.02433624]
[1733885626432,0.35778655,97301.0,97300.0,0.02533624]
[1733885627085,0.35178655,97301.0,97300.0,0.02433624]
[1733885627289,0.35678655,97301.0,97300.0,0.02533624]
[1733885627702,0.3669525,97301.0,97300.0,0.02533624]
[1733885627914,0.3669525,97301.0,97258.0,0.205637]
[1733885627915,0.205636,97259.0,97258.0,0.0803]
[1733885628128,0.205636,97259.0,97258.0,0.08046474]
[1733885629147,0.206636,97259.0,97258.0,0.08746474]
[1733885629561,0.206636,97259.0,97258.0,0.00016474]
[1733885629562,0.205636,97259.0,97258.0,0.00016474]
[1733885630425,0.205636,97259.0,97258.0,0.02716474]
[1733885630653,0.205636,97259.0,97258.0,0.02316474]
[1733885630822,0.206636,97259.0,97258.0,0.00116474]
[1733885631210,0.205636,97259.0,97258.0,0.00016474]
[1733885631832,0.21545246,97259.0,97258.0,0.00016474]
[1733885633955,0.21545246,97259.0,97249.0,0.00484174]
[1733885634160,0.205649,97253.0,97249.0,0.00016484]
[1733885635348,0.411298,97253.0,97249.0,0.00016484]
[1733885636230,0.21545246,97259.0,97249.0,0.00016484]
[1733885636231,0.205636,97259.0,97249.0,0.00016484]
[1733885636429,0.001,97253.0,97249.0,0.20582084]
[1733885636632,0.001,97253.0,97249.0,0.00016484]
[1733885637047,0.001,97253.0,97249.0,0.20782084]
[1733885637474,0.001,97253.0,97249.0,0.20582084]
[1733885637708,0.001,97253.0,97249.0,0.00016484]
[1733885638323,0.001,97253.0,97249.0,0.02516484]
[1733885638921,0.001,97253.0,97251.0,0.023]
[1733885639346,0.001,97253.0,97249.0,0.00216484]
[1733885639347,0.001,97253.0,97250.0,0.023]
[1733885639704,0.2056,97277.0,97259.0,0.023]
[1733885639913,0.0533,97300.0,97262.0,0.15]
[1733885639914,0.12187341,97300.0,97262.0,0.15]
[1733885640117,0.12187341,97300.0,97260.0,0.18132524]
[1733885640118,0.2374199,97300.0,97278.0,0.205596]
[1733885640340,0.2374199,97300.0,97279.0,0.076]
[1733885640948,0.205557,97297.0,97283.0,0.205583]
[1733885641313,0.205533,97308.0,97280.0,0.3]
[1733885641565,0.205533,97308.0,97284.0,0.205583]
[1733885641566,0.205542,97304.0,97284.0,0.205583]
[1733885641765,0.205543,97303.0,97284.0,0.023]
[1733885641970,0.005,97300.0,97293.0,0.023]
[1733885642397,0.005,97300.0,97291.0,0.023]
[1733885642951,0.014,97300.0,97291.0,0.023]
[1733885643774,0.205543,97303.0,97291.0,0.023]
[1733885643992,0.205543,97303.0,97291.0,0.025]
[1733885644392,0.001,97308.0,97291.0,0.025]
[1733885644598,0.205546,97302.0,97291.0,0.025]
[1733885644770,0.01032483,97310.0,97291.0,0.025]
[1733885644771,0.0001716,97310.0,97291.0,0.025]
[1733885644955,0.0001716,97310.0,97304.0,0.20554]
[1733885645200,0.0001716,97310.0,97305.0,0.023]
[1733885645409,0.0001716,97310.0,97301.0,0.023]
[1733885645610,0.0001716,97310.0,97292.0,0.077]
[1733885645611,0.0001716,97310.0,97293.0,0.228564]
[1733885645836,0.205531,97309.0,97293.0,0.228564]
[1733885646592,0.205531,97309.0,97298.0,0.205553]
[1733885646794,0.205531,97309.0,97299.0,0.023]
[1733885646996,0.205531,97309.0,97297.0,0.205554]
[1733885647204,0.205531,97309.0,97298.0,0.023]
[1733885647565,0.207531,97309.0,97298.0,0.023]
[1733885647802,0.205531,97309.0,97298.0,0.023]
[1733885648778,0.206531,97309.0,97298.0,0.023]
[1733885648979,0.001,97309.0,97294.0,0.023]
[1733885649179,0.001,97309.0,97292.0,0.077]
[1733885649180,0.205542,97304.0,97293.0,0.023]
[1733885649788,0.18281849,97310.0,97293.0,0.023]
[1733885649985,0.20556,97296.0,97293.0,0.023]
[1733885650347,0.20556,97296.0,97285.0,0.023]
[1733885650546,0.20556,97296.0,97293.0,0.001]
[1733885650752,0.20556,97296.0,97287.0,0.023]
[1733885651021,0.205553,97299.0,97287.0,0.023]
[1733885651169,0.205553,97299.0,97294.0,0.023]
[1733885652021,0.205543,97303.0,97294.0,0.023]
[1733885652424,0.205543,97303.0,97289.0,0.023]
[1733885652690,0.20484794,97303.0,97294.0,0.001]
[1733885653442,0.20484794,97303.0,97295.0,0.023]
[1733885653673,0.20484794,97303.0,97294.0,0.001]
[1733885653873,0.205539,97306.0,97296.0,0.023]
[1733885654081,0.205547,97302.0,97296.0,0.023]
[1733885654490,0.205555,97298.0,97296.0,0.023]
[1733885654693,0.205555,97298.0,97284.0,0.077]
[1733885654898,0.205556,97297.0,97294.0,0.001]
[1733885655096,0.411112,97297.0,97294.0,0.001]
[1733885655306,0.411112,97297.0,97284.0,0.077]
[1733885655307,0.205581,97285.0,97284.0,0.077]
[1733885655681,0.205556,97297.0,97296.0,0.002]
[1733885655903,0.31088124,97297.0,97296.0,0.002]
[1733885656110,0.31088124,97297.0,97280.0,0.00025064]
[1733885656111,0.28724971,97297.0,97280.0,0.00025064]
[1733885656313,0.205589,97281.0,97280.0,0.00025064]
[1733885656512,0.31091424,97281.0,97280.0,0.00025064]
[1733885657892,0.31291424,97281.0,97280.0,0.00025064]
[1733885658284,0.32277934,97281.0,97280.0,0.00025064]
[1733885658483,0.32377934,97281.0,97280.0,0.00025064]
[1733885660065,0.35571018,97281.0,97280.0,0.00025064]
[1733885662486,0.35571018,97281.0,97258.0,0.07643337]
[1733885662726,0.205636,97259.0,97258.0,0.09959828]
[1733885663465,0.205636,97259.0,97258.0,0.02316491]
[1733885663922,0.205636,97259.0,97250.0,8.58e-05]
[1733885663923,0.0539,97259.0,97250.0,8.58e-05]
[1733885664132,0.205653,97251.0,97250.0,8.58e-05]
[1733885664339,0.205653,97251.0,97250.0,0.00025095]
[1733885664542,0.205649,97253.0,97250.0,0.00025095]
[1733885664715,0.205638,97258.0,97250.0,0.00025095]
[1733885664924,0.205629,97263.0,97250.0,0.00025095]
[1733885665094,0.205648,97254.0,97250.0,0.00025095]
[1733885665296,0.001,97251.0,97250.0,0.00025095]
[1733885665729,0.001,97251.0,97250.0,0.07845095]
[1733885666308,0.001,97251.0,97250.0,0.10145095]
[1733885666596,0.411297,97254.0,97250.0,0.10145095]
[1733885666597,0.411297,97254.0,97251.0,0.023]
[1733885668278,0.205648,97254.0,97251.0,0.025]
[1733885668692,0.205648,97254.0,97251.0,0.026]
[1733885670109,0.121883,97270.0,97251.0,0.026]
[1733885670450,0.205602,97276.0,97264.0,0.228625]
[1733885670768,0.205602,97276.0,97264.0,0.023]
[1733885670964,0.411204,97276.0,97264.0,0.023]
[1733885671193,0.006,97270.0,97264.0,0.023]
[1733885671612,0.205602,97276.0,97264.0,0.023]
[1733885671613,0.41123,97269.0,97264.0,0.023]
[1733885672014,0.205594,97279.0,97264.0,0.023]
[1733885672251,0.13205653,97290.0,97266.0,0.023]
[1733885672252,0.205596,97278.0,97266.0,0.023]
[1733885672369,0.205589,97282.0,97268.0,0.023]
[1733885672570,0.205589,97282.0,97270.0,0.023]
[1733885672772,0.01017353,97290.0,97271.0,0.0451]
[1733885672983,0.205588,97282.0,97272.0,0.023]
[1733885673188,0.205577,97287.0,97273.0,0.205606]
[1733885673390,0.205577,97287.0,97274.0,0.023]
[1733885673930,0.205577,97287.0,97272.0,0.023]
[1733885673931,0.03,97278.0,97272.0,0.023]
[1733885674104,0.205599,97277.0,97272.0,0.023]
[1733885674312,0.205573,97289.0,97272.0,0.023]
[1733885674691,0.205591,97281.0,97272.0,0.02295993]
[1733885676265,0.205573,97289.0,97272.0,0.02295993]
[1733885676266,0.205579,97286.0,97272.0,0.22856793]
[1733885677172,0.15999662,97291.0,97277.0,0.1048]
[1733885677173,0.15,97291.0,97277.0,0.1048]
[1733885677374,0.15,97291.0,97282.0,0.205586]
[1733885677767,0.001,97286.0,97283.0,0.023]
[1733885678318,0.205572,97290.0,97278.0,0.023]
[1733885678648,0.205572,97290.0,97278.0,0.02316515]
[1733885678851,0.004,97286.0,97278.0,0.02316515]
[1733885680359,0.1220546,97290.0,97278.0,0.02316515]
[1733885680569,0.205589,97282.0,97278.0,0.00016515]
[1733885680771,0.411178,97282.0,97278.0,0.00116515]
[1733885681483,0.411178,97282.0,97278.0,0.00016515]
[1733885681645,0.51650324,97282.0,97278.0,0.00116515]
[1733885681807,0.10532524,97281.0,97278.0,0.00316515]
[1733885682013,0.205592,97280.0,97278.0,0.00216515]
[1733885682208,0.10532524,97279.0,97278.0,0.00016515]
[1733885683521,0.13729427,97279.0,97278.0,0.00016515]
[1733885684266,0.14329427,97279.0,97278.0,0.00116515]
[1733885684466,0.13729427,97279.0,97278.0,0.00016515]
[1733885684667,0.14129427,97279.0,97278.0,0.00016515]
[1733885684887,0.14929427,97279.0,97278.0,0.00116515]
[1733885685289,0.13729427,97279.0,97278.0,0.00016515]
[1733885685650,0.14129427,97279.0,97278.0,0.00016515]
[1733885686613,0.15029427,97279.0,97278.0,0.00116515]
[1733885687846,0.25099254,97279.0,97278.0,0.00116515]
[1733885688446,0.34301469,97279.0,97278.0,0.00116515]
[1733885688627,0.24231642,97279.0,97278.0,0.00116515]
[1733885689544,0.15029427,97279.0,97278.0,0.00116515]
[1733885689746,0.24231642,97279.0,97278.0,0.00116515]
[1733885690605,0.15029427,97279.0,97278.0,0.00116515]
[1733885690807,0.24231754,97279.0,97278.0,0.00116515]
[1733885691008,0.15029427,97279.0,97278.0,0.00116515]
[1733885691915,0.2883275,97279.0,97278.0,0.00116515]
[1733885692337,0.25539756,97279.0,97278.0,0.00116515]
[1733885693520,0.15029427,97279.0,97278.0,0.00116515]
[1733885694664,0.33433857,97279.0,97278.0,0.00116515]
[1733885695451,0.15029427,97279.0,97278.0,0.00116515]
[1733885697685,0.15029427,97279.0,97250.0,0.0818858]
[1733885697686,0.205629,97263.0,97250.0,8.58e-05]
[1733885697862,0.205629,97263.0,97250.0,0.00025102]
[1733885697863,0.205653,97251.0,97250.0,0.00025102]
[1733885698011,0.34294727,97251.0,97250.0,0.00025102]
[1733885699484,0.34994727,97251.0,97250.0,0.00125102]
[1733885700243,0.34994727,97251.0,97250.0,0.00025102]
[1733885700629,0.205689,97234.0,97233.0,0.078]
[1733885700828,0.205655,97250.0,97234.0,0.023]
[1733885700829,0.121883,97243.0,97234.0,0.023]
[1733885701032,0.23033794,97255.0,97234.0,0.023]
[1733885701033,0.01722104,97251.0,97236.0,0.023]
[1733885701231,0.22720824,97250.0,97238.0,0.023]
[1733885701504,0.22720824,97250.0,97233.0,0.00016528]
[1733885701505,0.22720824,97250.0,97236.0,0.101]
[1733885701703,0.22720824,97250.0,97238.0,0.078]
[1733885701914,0.22720824,97250.0,97239.0,0.023]
[1733885702258,0.205657,97249.0,97239.0,0.023]
[1733885702674,0.411314,97249.0,97239.0,0.023]
[1733885702865,0.205667,97245.0,97239.0,0.023]
[1733885703214,0.205676,97240.0,97238.0,0.078]
[1733885703414,0.20568,97238.0,97233.0,0.00016528]
[1733885703617,0.205685,97236.0,97233.0,0.00016528]
[1733885703823,0.205689,97234.0,97233.0,0.00016528]
[1733885703996,0.31101424,97234.0,97233.0,0.00016528]
[1733885706483,0.32114837,97234.0,97233.0,0.00016528]
[1733885712492,0.35311816,97234.0,97233.0,0.00016528]
[1733885713673,0.35511816,97234.0,97233.0,0.00016528]
[1733885713878,0.35511816,97234.0,97233.0,2.8e-07]
[1733885714114,0.35311816,97234.0,97233.0,2.8e-07]
[1733885714518,0.35611816,97234.0,97233.0,2.8e-07]
[1733885714718,0.36211816,97234.0,97233.0,2.8e-07]
[1733885715265,0.35311816,97234.0,97233.0,2.8e-07]
[1733885715466,0.36611816,97234.0,97233.0,2.8e-07]
[1733885715613,0.35711816,97234.0,97233.0,2.8e-07]
[1733885716023,0.36611816,97234.0,97233.0,2.8e-07]
[1733885716652,0.36211816,97234.0,97233.0,2.8e-07]
[1733885716823,0.15,97231.0,97230.0,8e-08]
[1733885717031,0.28729503,97231.0,97230.0,3.6e-07]
[1733885717641,0.37928149,97231.0,97230.0,3.6e-07]
[1733885717998,0.28729503,97231.0,97230.0,3.6e-07]
[1733885718208,0.39239832,97231.0,97230.0,3.6e-07]
[1733885718421,0.28729503,97231.0,97230.0,3.6e-07]
[1733885718629,0.29629503,97231.0,97230.0,3.6e-07]
[1733885719018,0.28729503,97231.0,97230.0,3.6e-07]
[1733885719205,0.29629503,97231.0,97230.0,3.6e-07]
[1733885719345,0.14629503,97231.0,97230.0,3.6e-07]
[1733885719555,0.13729503,97231.0,97230.0,3.6e-07]
[1733885720575,0.14429503,97231.0,97230.0,3.6e-07]
[1733885721263,0.14429503,97231.0,97220.0,0.0800858]
[1733885721264,0.617091,97230.0,97220.0,0.07988616]
[1733885721462,0.10532524,97224.0,97220.0,0.00055141]
[1733885721668,0.03196979,97223.0,97220.0,0.00055141]
[1733885721846,0.205716,97221.0,97220.0,0.00055141]
[1733885722074,0.34301103,97221.0,97220.0,0.00055141]
[1733885722488,0.31104124,97221.0,97220.0,0.00055141]
[1733885723088,0.34300921,97221.0,97220.0,0.00055141]
[1733885723445,0.35200921,97221.0,97220.0,0.00055141]
[1733885724097,0.36206124,97221.0,97220.0,0.00055141]
[1733885724286,0.33009327,97221.0,97220.0,0.00055141]
[1733885724627,0.36206193,97221.0,97220.0,0.00055141]
[1733885725008,0.36706193,97221.0,97220.0,0.00055141]
[1733885725209,0.014,97221.0,97220.0,0.04615141]
[1733885725441,0.005,97221.0,97220.0,0.06915141]
[1733885725646,0.20571,97225.0,97221.0,0.023]
[1733885726050,0.41142,97225.0,97221.0,0.023]
[1733885726795,0.20571,97225.0,97221.0,0.023]
[1733885726997,0.20771,97225.0,97221.0,0.023]
[1733885727835,0.20571,97224.0,97221.0,0.023]
[1733885728233,0.207709,97225.0,97221.0,0.023]
[1733885728910,0.001,97225.0,97221.0,0.023]
[1733885729387,0.20771,97224.0,97221.0,0.023]
[1733885729586,0.20571,97224.0,97221.0,0.023]
[1733885729947,0.41142,97224.0,97221.0,0.023]
[1733885730152,0.20571,97224.0,97221.0,0.023]
[1733885730713,0.20671,97224.0,97221.0,0.023]
[1733885732214,0.205714,97222.0,97221.0,0.023]
[1733885733453,0.206714,97222.0,97221.0,0.023]
[1733885737691,0.206714,97222.0,97220.0,0.08063721]
[1733885737837,0.206714,97222.0,97220.0,0.08053721]
[1733885738042,0.206714,97222.0,97220.0,0.00053721]
[1733885738043,0.10532524,97221.0,97220.0,0.00053721]
[1733885738238,0.13737993,97221.0,97220.0,0.00053721]
[1733885738442,0.03205469,97221.0,97220.0,0.00053721]
[1733885740989,0.13737993,97221.0,97220.0,0.00053721]
[1733885741193,0.14037993,97221.0,97220.0,0.00053721]
[1733885741566,0.13837993,97221.0,97220.0,0.00053721]
[1733885743053,0.14237993,97221.0,97220.0,0.00053721]
[1733885743258,0.13837993,97221.0,97220.0,0.00053721]
[1733885743480,0.23345003,97221.0,97220.0,0.00053721]
[1733885744030,0.14137993,97221.0,97220.0,0.00053721]
[1733885744433,0.11032524,97221.0,97220.0,0.00053721]
[1733885744631,0.14239385,97221.0,97220.0,0.00053721]
[1733885744829,0.13739385,97221.0,97220.0,0.00053721]
[1733885745232,0.13839385,97221.0,97220.0,0.00053721]
[1733885746280,0.14039385,97221.0,97220.0,0.00053721]
[1733885746705,0.13939385,97221.0,97220.0,0.00053721]
[1733885747031,0.14039385,97221.0,97220.0,0.00053721]
[1733885747755,0.23168768,97221.0,97220.0,0.00053721]
[1733885747955,0.14039385,97221.0,97220.0,0.00053721]
[1733885748235,0.13839385,97221.0,97220.0,0.00053721]
[1733885748439,0.13739385,97221.0,97220.0,0.00053721]
[1733885748637,0.2758346,97221.0,97220.0,0.00053721]
[1733885748934,0.2768346,97221.0,97220.0,0.00053721]
[1733885749141,0.27691995,97221.0,97220.0,0.00053721]
[1733885749540,0.13839385,97221.0,97220.0,0.00053721]
[1733885749743,0.14039385,97221.0,97220.0,0.00053721]
[1733885749979,0.13839385,97221.0,97220.0,0.00053721]
[1733885750240,0.13739385,97221.0,97220.0,0.00053721]
[1733885750474,0.14739385,97221.0,97220.0,0.00053721]
[1733885750993,0.14439385,97221.0,97220.0,0.00053721]
[1733885751273,0.14739385,97221.0,97220.0,0.00053721]
[1733885751785,0.13739385,97221.0,97220.0,0.00053721]
[1733885752069,0.13739385,97221.0,97202.0,0.0804]
[1733885752070,0.13739385,97221.0,97202.0,0.07102291]
[1733885752292,0.205754,97203.0,97202.0,0.07102291]
[1733885754763,0.205754,97203.0,97202.0,0.07202291]
[1733885754764,0.23783503,97203.0,97202.0,0.07202291]
[1733885755015,0.23883503,97203.0,97202.0,0.07202291]
[1733885755247,0.23883503,97203.0,97202.0,0.07102291]
[1733885755745,0.24905544,97203.0,97202.0,0.07102291]
[1733885756960,0.001,97203.0,97202.0,0.09402291]
[1733885757163,0.001,97203.0,97202.0,0.309157]
[1733885757369,0.001,97203.0,97202.0,0.1034]
[1733885757572,0.004,97203.0,97202.0,0.1034]
[1733885757710,0.205752,97204.0,97203.0,0.023]